[Event "FIDE World School-ch O-15 2025"]
[Site "Vrnjacka Banja"]
[Date "2025.03.27"]
[Round "8.8"]
[White "Mane, Arnav"]
[Black "Durucay, Uygar"]
[Result "0-1"]
[Annotator "TA"]
[ECO "B12"]
[WhiteElo "1748"]
[BlackElo "2159"]
[PlyCount "98"]
[EventDate "2025.03.19"]
[EventType "swiss"]
[EventCountry "SRB"]
[SourceTitle "playchess.com"]
[Source "ChessBase"]
[SourceQuality "1"]
[TimeControl "5400+30"]

{[%evp 9,98,12,12,7,20,14,13,-8,4,-8,12,10,13,0,6,12,9,-18,-16,-14,-19,-33,-17,-17,-20,-77,-74,-87,-96,-115,-110,-112,-100,-127,-143,-131,-107,-110,-87,-114,-116,-128,-128,-139,-132,-130,-115,-131,-104,-182,-183,-166,-89,-88,-87,-95,-35,-58,-7,-164,-129,-169,-138,-346,-318,-300,-335,-334,-331,-410,-324,-287,-273,-734,-736,-711,-734,-828,-778,-1233,-1153,-29980,-29981,-29981,-29982,-29982,-29983,-29983,-29984,-29984,-29985]} 1. e4 {[%emt 0:00:15]} c6 {[%emt 0:00:20]} 2. d4 {[%emt 0:00:07]} d5 {[%emt 0:00:06]} 3. e5 {[%emt 0:00:04]} Bf5 {[%emt 0:00:06]} 4. h4 {[%emt 0:00:06]} a6 {[%emt 0:00:42]} 5. Nc3 {[%emt 0:00:06]} h5 {[%emt 0:01:34]} 6. Nce2 {[%emt 0:00:04] B12: Caro-Kann: Advance Variation.} e6 {[%emt 0:12:59]} 7. Ng3 {[%emt 0:00:06][%cal Og3f5]} Bg6 {[%emt 0:00:35]} 8. Bd3 $146 {[%emt 0:01:06] The position is equal.} (8. Nh3 c5 9. Nf4 Ne7 10. c3 cxd4 11. cxd4 Nbc6 12. Be2 Qb6 13. Be3 Bf5 14. Nfxh5 Qxb2 {1-0 Shirov,A (2739)-Morozevich,A (2755) EU-chT (Men) 16th 2007 (8.1)}) 8... Bxd3 {[%emt 0:02:30]} 9. cxd3 {[%emt 0:00:06]} g6 {[%emt 0:06:57]} 10. Qb3 {[%emt 0:19:58]} Qa5+ {[%emt 0:07:37]} 11. Bd2 {[%emt 0:02:06]} Qb5 {[%emt 0:00:01]} 12. Qc2 {[%emt 0:04:57]} a5 {[%emt 0:02:33]} 13. a4 {[%emt 0:00:56]} Qb6 {[%emt 0:00:15]} 14. Nf3 {[%emt 0:00:33]} Na6 {[%emt 0:01:04][%cal Bb8a6,Ba6b4,Bb4d3][%mdl 32]} 15. Bc3 {[%emt 0:15:13]} Nb4 {[%emt 0:04:07]} 16. Qd2 {[%emt 0:01:29]} Qa6 {[%emt 0:05:25]} 17. O-O {[%emt 0:11:21]} (17. Ke2 $11 {remains equal.}) 17... Nxd3 $17 {[%emt 0:03:06]} 18. Rfd1 {[%emt 0:04:44]} Nb4 {[%emt 0:00:14]} 19. Ng5 {[%emt 0:00:32]} Nh6 {[%emt 0:03:07]} 20. Qf4 {[%emt 0:03:21]} Be7 {[%emt 0:01:51] Dodges Qf6} 21. Bxb4 {[%emt 0:04:42]} axb4 {[%emt 0:01:15]} 22. b3 {[%emt 0:00:23]} Qa5 {[%emt 0:07:14]} 23. Rdc1 {[%emt 0:05:08]} Qd8 {[%emt 0:00:23]} 24. Qd2 {[%emt 0:01:29]} Kf8 {[%emt 0:03:00]} 25. Nf1 {[%emt 0:03:34]} Kg7 {[%emt 0:02:44]} 26. g3 {[%emt 0:02:47]} Qb6 {[%emt 0:01:43]} 27. Qf4 {[%emt 0:01:25]} Rhc8 {[%emt 0:05:20]} 28. Kg2 {[%emt 0:02:36]} Ra5 {[%emt 0:02:48]} 29. Nh2 {[%emt 0:05:34] [#]} (29. Rab1 $17) 29... Nf5 $1 $19 {[%emt 0:01:03]} 30. Nhf3 {[%emt 0:01:13]} c5 {[%emt 0:00:39]} ({Better is} 30... Raa8 $19 31. Ra2 c5 32. dxc5 Rxc5) 31. g4 $17 {[%emt 0:00:45]} hxg4 {[%emt 0:00:33]} (31... Nxd4 32. Qxf7+ Kh8 33. Qh7#) 32. Qxg4 {[%emt 0:00:09]} Rh8 {[%emt 0:13:12]} (32... Nxd4 $2 33. Nxd4 Rb8 34. Ndf3 $18) (32... c4 $17 {And now ...c3 would win.} 33. h5 Nh6) 33. h5 $1 $15 {[%emt 0:01:35]} c4 {[%emt 0:06:29]} (33... Nxd4 34. Nxd4 Rxh5 35. Ndf3 Bxg5 36. Rh1 $18 (36. Nxg5 Qd8 $16)) (33... cxd4 34. hxg6 Bxg5 35. Qxg5 $18) (33... Rxh5 $6 34. Rh1 Nh6 (34... Nxd4 35. Rxh5 Qd8 36. Rh7+ Kf8 37. Nxf7 $18) 35. Qf4 $14) (33... Bxg5 $1 $15 34. Qxg5 Rxh5 (34... Nxd4 35. Qf6+ Kf8 36. hxg6 $18) 35. Qf6+ Kg8) 34. Rh1 $2 {[%emt 0:01:04] [#]} (34. hxg6 $11 {and White has nothing to worry.} fxg6 35. bxc4) 34... Raa8 $1 $19 {[%emt 0:00:50] Active counter play!} (34... cxb3 35. hxg6 Nh6 36. Qf4 $18) 35. hxg6 {[%emt 0:03:29]} fxg6 {[%emt 0:00:04][%csl Of5] Strong Square Black (f5)} 36. Nh4 $2 {[%emt 0:00:54] This move loses the game for White.} (36. a5 $17 {is a better defense.} Qc6 (36... Rxa5 $2 {perishes.} 37. Rxh8 $18) 37. Nh4 cxb3 (37... Nxd4 38. Nxg6 Kxg6 39. Nh7+ Kf7 40. Qh5+ Kg7 41. Rag1) 38. Nxg6) 36... Rxh4 {[%emt 0:01:31]} (36... Qxd4 37. Nxe6+ Kg8 38. Qxg6+) (36... Nxd4 37. Nxg6 Kxg6 38. Nh7+ (38. Nxe6+ Kf7 $18) 38... Kf7 39. Qh5+ Kg7 40. Rag1 $18) 37. Rxh4 {[%emt 0:00:09]} Nxh4+ {[%emt 0:00:06]} 38. Qxh4 {[%emt 0:01:01]} Rh8 {[%emt 0:00:52] Against Qh7+} (38... cxb3 39. Qh7+ Kf8 40. Qh8#) 39. Qg4 {[%emt 0:00:14]} Bxg5 {[%emt 0:00:11]} ({Stronger than} 39... cxb3 40. Nxe6+ Kf7 41. Nf4 $11) 40. Qxg5 {[%emt 0:00:01][%mdl 4096] Endgame KQR-KQR. Black is a pawn up.} Qd8 {[%emt 0:00:23] Against Qf6+} (40... Qxd4 41. Qf6+ Kg8 42. Qxe6+ Kg7 43. Qf6+ Kg8 44. Qxg6+ Kf8 45. Qf6+ Kg8 46. Rg1 $18) 41. Qg3 {[%emt 0:01:42]} (41. Qxd8 Rxd8 42. f4) 41... Qh4 {[%emt 0:00:48]} 42. Qxh4 {[%emt 0:02:30]} Rxh4 {[%emt 0:00:01] KR-KR. Black is a pawn up.} 43. Rd1 {[%emt 0:00:43]} c3 {[%emt 0:00:10][%cal Oh4d4]} 44. f3 {[%emt 0:00:52] [#]} Rxd4 $3 {[%emt 0:00:12][%mdl 512]} 45. Rc1 {[%emt 0:00:13]} (45. Rxd4 c2) 45... Rd2+ {[%emt 0:00:15] Black mates.} 46. Kg3 {[%emt 0:00:10]} c2 {[%emt 0:00:26]} 47. Kf4 {[%emt 0:00:08]} d4 {[%emt 0:00:06]} 48. Ke4 {[%emt 0:00:09]} d3 {[%emt 0:00:04]} 49. Ke3 {[%emt 0:00:18]} Rd1 {[%emt 0:00:05] Weighted Error Value: White=0.54/Black=0.12 (very precise)   Loses game:     	White=1     	---        Mistake:       	White=4     	Black=3      Inaccurate:     	White=3     	---        OK:         	White=12    	Black=16     Best:        	White=1     	Black=2      Strong:       	White=1     	Black=1} 0-1